[Event "*** Titled Tuesday Blitz"]
[Site "Chess.com"]
[Date "2021.02.16"]
[Round "5"]
[White "MaevskiyNikolay"]
[Black "Hangar-18"]
[Result "1-0"]
[WhiteElo "2536"]
[BlackElo "2375"]
[TimeControl "180+1"]
[EndTime "10:58:48 PST"]
[Termination "MaevskiyNikolay won by resignation"]

1. d4 {[%clk 0:03:00.9]} 1... Nf6 {[%clk 0:02:55.4]} 2. c4 {[%clk 0:03:00.5]}
2... e6 {[%clk 0:02:54.8]} 3. g3 {[%clk 0:02:59.3]} 3... d5 {[%clk 0:02:53.8]}
4. Nf3 {[%clk 0:02:59]} 4... Be7 {[%clk 0:02:54]} 5. Bg2 {[%clk 0:02:59.4]} 5...
O-O {[%clk 0:02:53.6]} 6. O-O {[%clk 0:03:00]} 6... dxc4 {[%clk 0:02:53.9]} 7.
Qc2 {[%clk 0:03:00.2]} 7... a6 {[%clk 0:02:53.5]} 8. Qxc4 {[%clk 0:02:59.7]}
8... b5 {[%clk 0:02:53.6]} 9. Qc2 {[%clk 0:03:00.6]} 9... Bb7 {[%clk 0:02:53.4]}
10. Bd2 {[%clk 0:03:00.2]} 10... Nc6 {[%clk 0:02:48.5]} 11. e3 {[%clk
0:02:56.6]} 11... Nb4 {[%clk 0:02:41.5]} 12. Bxb4 {[%clk 0:02:47.7]} 12... Bxb4
{[%clk 0:02:40.7]} 13. Rc1 {[%clk 0:02:46.2]} 13... Rc8 {[%clk 0:02:37.1]} 14.
a3 {[%clk 0:02:45.2]} 14... Bd6 {[%clk 0:02:34.3]} 15. b4 {[%clk 0:02:44.7]}
15... Nd7 {[%clk 0:02:07.8]} 16. Ng5 {[%clk 0:02:35.5]} 16... Qxg5 {[%clk
0:02:04.9]} 17. Bxb7 {[%clk 0:02:34.4]} 17... Rb8 {[%clk 0:02:05.2]} 18. Bc6
{[%clk 0:02:10.9]} 18... Nb6 {[%clk 0:02:02.4]} 19. Nd2 {[%clk 0:02:10]} 19...
h5 {[%clk 0:01:55.8]} 20. h4 {[%clk 0:02:09]} 20... Qg4 {[%clk 0:01:43.6]} 21.
Bf3 {[%clk 0:02:04.8]} 21... Qh3 {[%clk 0:01:39.5]} 22. Ne4 {[%clk 0:01:42]}
22... Qf5 {[%clk 0:01:15]} 23. Qe2 {[%clk 0:01:25.7]} 23... g6 {[%clk
0:01:06.1]} 24. Nc5 {[%clk 0:00:58.6]} 24... Bxc5 {[%clk 0:00:48.2]} 25. Rxc5
{[%clk 0:00:58.4]} 25... Qf6 {[%clk 0:00:42.9]} 26. Rxc7 {[%clk 0:00:54]} 26...
Nc4 {[%clk 0:00:43.4]} 27. Rc6 {[%clk 0:00:45.5]} 27... Rb6 {[%clk 0:00:33.8]}
28. Rxb6 {[%clk 0:00:41.1]} 28... Nxb6 {[%clk 0:00:33.2]} 29. Rc1 {[%clk
0:00:41]} 29... Nc4 {[%clk 0:00:33.2]} 30. a4 {[%clk 0:00:39.1]} 30... Rb8
{[%clk 0:00:30.6]} 31. a5 {[%clk 0:00:37.3]} 31... Qe7 {[%clk 0:00:29.9]} 32.
Qe1 {[%clk 0:00:33.4]} 32... Qd6 {[%clk 0:00:27]} 33. Be2 {[%clk 0:00:32.8]}
33... Rc8 {[%clk 0:00:24.7]} 34. Bxc4 {[%clk 0:00:18.8]} 34... Rxc4 {[%clk
0:00:24.6]} 35. Rxc4 {[%clk 0:00:16.8]} 35... bxc4 {[%clk 0:00:25.5]} 36. Qc3
{[%clk 0:00:11]} 36... Qc6 {[%clk 0:00:25.9]} 37. Kf1 {[%clk 0:00:10.6]} 37...
Qb5 {[%clk 0:00:26.1]} 38. Ke2 {[%clk 0:00:10.3]} 38... Kf8 {[%clk 0:00:26.6]}
39. e4 {[%clk 0:00:10.6]} 39... Ke7 {[%clk 0:00:26.8]} 40. Ke3 {[%clk 0:00:11]}
40... Kd6 {[%clk 0:00:26.4]} 41. f3 {[%clk 0:00:11.3]} 41... Kc7 {[%clk
0:00:25.4]} 42. Kf4 {[%clk 0:00:10.4]} 42... Kd7 {[%clk 0:00:25.1]} 43. g4
{[%clk 0:00:10.7]} 43... Ke7 {[%clk 0:00:25.5]} 44. gxh5 {[%clk 0:00:10.1]}
44... gxh5 {[%clk 0:00:26.4]} 45. Ke3 {[%clk 0:00:10.2]} 45... Qc6 {[%clk
0:00:26.5]} 46. f4 {[%clk 0:00:09.4]} 46... Qc7 {[%clk 0:00:26.6]} 47. d5 {[%clk
0:00:09.1]} 47... exd5 {[%clk 0:00:24.7]} 48. exd5 {[%clk 0:00:09.4]} 48... Kf8
{[%clk 0:00:23.6]} 49. Qh8+ {[%clk 0:00:08.5]} 49... Ke7 {[%clk 0:00:23.5]} 50.
Qe5+ {[%clk 0:00:08.8]} 50... Kd7 {[%clk 0:00:22.8]} 51. Qxc7+ {[%clk
0:00:08.5]} 51... Kxc7 {[%clk 0:00:23.7]} 52. Kd4 {[%clk 0:00:09]} 52... c3
{[%clk 0:00:24.5]} 53. Kxc3 {[%clk 0:00:09.3]} 53... Kd6 {[%clk 0:00:25.4]} 54.
Kd4 {[%clk 0:00:09.8]} 54... f5 {[%clk 0:00:25.7]} 55. Kc4 {[%clk 0:00:10.2]}
55... Kc7 {[%clk 0:00:24.7]} 56. Kc5 {[%clk 0:00:10.8]} 56... Kd7 {[%clk
0:00:25.3]} 57. d6 {[%clk 0:00:11.3]} 57... Kd8 {[%clk 0:00:25]} 58. Kd5 {[%clk
0:00:11.5]} 58... Kd7 {[%clk 0:00:24.8]} 59. Ke5 {[%clk 0:00:11.8]} 59... Kd8
{[%clk 0:00:24.6]} 60. Kxf5 {[%clk 0:00:12.1]} 60... Kd7 {[%clk 0:00:25.2]} 61.
Ke5 {[%clk 0:00:12.7]} 61... Kd8 {[%clk 0:00:25.1]} 62. f5 {[%clk 0:00:13.3]}
62... Ke8 {[%clk 0:00:25.4]} 63. Ke6 {[%clk 0:00:13.6]} 63... Kd8 {[%clk
0:00:25.3]} 64. d7 {[%clk 0:00:13.9]} 1-0

[Event "*** Titled Tuesday Blitz"]
[Site "Chess.com"]
[Date "2021.02.16"]
[Round "5"]
[White "AsaHoffmann"]
[Black "verdest"]
[Result "1-0"]
[WhiteElo "2363"]
[BlackElo "2495"]
[TimeControl "180+1"]
[EndTime "10:58:48 PST"]
[Termination "AsaHoffmann won by resignation"]

1. d4 {[%clk 0:02:53.5]} 1... Nf6 {[%clk 0:02:59.7]} 2. Bg5 {[%clk 0:02:50]}
2... Ne4 {[%clk 0:02:57.8]} 3. Bf4 {[%clk 0:02:49.3]} 3... d5 {[%clk 0:02:58.3]}
4. f3 {[%clk 0:02:49.1]} 4... Nd6 {[%clk 0:02:54.9]} 5. Nc3 {[%clk 0:02:48.4]}
5... c6 {[%clk 0:02:30]} 6. e4 {[%clk 0:02:47.7]} 6... dxe4 {[%clk 0:02:22.1]}
7. fxe4 {[%clk 0:02:47.2]} 7... g6 {[%clk 0:02:22.4]} 8. Nf3 {[%clk 0:02:46.5]}
8... Bg7 {[%clk 0:02:22.1]} 9. Qd2 {[%clk 0:02:46.4]} 9... O-O {[%clk
0:02:21.1]} 10. O-O-O {[%clk 0:02:46]} 10... Bg4 {[%clk 0:02:20.3]} 11. Bh6
{[%clk 0:02:43.6]} 11... Nd7 {[%clk 0:02:19.1]} 12. Be2 {[%clk 0:02:42.9]} 12...
Qa5 {[%clk 0:02:17]} 13. Kb1 {[%clk 0:02:38.1]} 13... Rfe8 {[%clk 0:01:57.7]}
14. Bxg7 {[%clk 0:02:36.2]} 14... Kxg7 {[%clk 0:01:57.6]} 15. e5 {[%clk
0:02:31.6]} 15... Nf5 {[%clk 0:01:53]} 16. h3 {[%clk 0:02:29.5]} 16... Bxf3
{[%clk 0:01:52.7]} 17. Bxf3 {[%clk 0:02:25.2]} 17... Nb6 {[%clk 0:01:52.6]} 18.
b3 {[%clk 0:02:03.7]} 18... Rad8 {[%clk 0:01:48]} 19. Ne2 {[%clk 0:01:52.7]}
19... Qa3 {[%clk 0:01:38.2]} 20. c3 {[%clk 0:01:46.3]} 20... c5 {[%clk
0:01:28.6]} 21. g4 {[%clk 0:01:41.5]} 21... Nh4 {[%clk 0:01:24.5]} 22. Bxb7
{[%clk 0:01:38.6]} 22... cxd4 {[%clk 0:01:24]} 23. cxd4 {[%clk 0:01:31.5]} 23...
Rb8 {[%clk 0:01:03.8]} 24. Bc6 {[%clk 0:01:30.7]} 24... Rec8 {[%clk 0:01:01.8]}
25. d5 {[%clk 0:01:30.5]} 25... Nc4 {[%clk 0:00:58]} 26. Qc3 {[%clk 0:01:26.9]}
26... Na5 {[%clk 0:00:51.4]} 27. Nc1 {[%clk 0:01:20.9]} 27... Kg8 {[%clk
0:00:46.5]} 28. Rh2 {[%clk 0:01:05.8]} 28... Rb6 {[%clk 0:00:45.2]} 29. Qb2
{[%clk 0:00:58.5]} 29... Qxb2+ {[%clk 0:00:44.5]} 30. Rxb2 {[%clk 0:00:56.7]}
30... Nxc6 {[%clk 0:00:45]} 31. dxc6 {[%clk 0:00:56.3]} 31... Rbxc6 {[%clk
0:00:45.9]} 32. Rbd2 {[%clk 0:00:53.3]} 32... Kg7 {[%clk 0:00:42.9]} 33. Rd7
{[%clk 0:00:50.7]} 33... R8c7 {[%clk 0:00:31.8]} 34. Rxc7 {[%clk 0:00:49.8]}
34... Rxc7 {[%clk 0:00:32.7]} 35. Rd3 {[%clk 0:00:48.2]} 35... Ng2 {[%clk
0:00:30.9]} 36. Ne2 {[%clk 0:00:47.2]} 36... Ne1 {[%clk 0:00:27.6]} 37. Rd5
{[%clk 0:00:42]} 37... Nf3 {[%clk 0:00:26]} 38. Kb2 {[%clk 0:00:36.9]} 38... h5
{[%clk 0:00:21.9]} 39. Nc3 {[%clk 0:00:36]} 39... h4 {[%clk 0:00:20.6]} 40. Nb5
{[%clk 0:00:35.1]} 40... Rb7 {[%clk 0:00:20.2]} 41. a4 {[%clk 0:00:34.7]} 41...
Ng5 {[%clk 0:00:20.5]} 42. Rd3 {[%clk 0:00:33.4]} 42... a6 {[%clk 0:00:20.9]}
43. Nc3 {[%clk 0:00:31.4]} 43... f5 {[%clk 0:00:21]} 44. gxf5 {[%clk 0:00:26.4]}
44... gxf5 {[%clk 0:00:21.9]} 45. Nd5 {[%clk 0:00:25]} 45... Rd7 {[%clk
0:00:20.7]} 46. Nf4 {[%clk 0:00:24.5]} 46... Rxd3 {[%clk 0:00:20.4]} 47. Nxd3
{[%clk 0:00:24.4]} 47... Nxh3 {[%clk 0:00:21.2]} 48. b4 {[%clk 0:00:24.5]} 48...
Ng5 {[%clk 0:00:21.5]} 49. b5 {[%clk 0:00:24.4]} 49... axb5 {[%clk 0:00:21.6]}
50. a5 {[%clk 0:00:23.6]} 50... h3 {[%clk 0:00:22]} 51. a6 {[%clk 0:00:22.5]}
51... h2 {[%clk 0:00:21.7]} 52. Nf2 {[%clk 0:00:22.4]} 52... Ne4 {[%clk
0:00:20.6]} 53. Nh1 {[%clk 0:00:22]} 53... Nd2 {[%clk 0:00:14.1]} 54. Kc3 {[%clk
0:00:20.1]} 54... Nc4 {[%clk 0:00:15]} 55. Kb4 {[%clk 0:00:18.3]} 55... Nb6
{[%clk 0:00:09.6]} 56. Kxb5 {[%clk 0:00:18.2]} 56... Nc8 {[%clk 0:00:09]} 57.
Kc6 {[%clk 0:00:18.2]} 57... Na7+ {[%clk 0:00:08.1]} 58. Kb6 {[%clk 0:00:17]}
58... Nc8+ {[%clk 0:00:07.7]} 59. Kb7 {[%clk 0:00:17]} 1-0

[Event "*** Titled Tuesday Blitz"]
[Site "Chess.com"]
[Date "2021.02.16"]
[Round "5"]
[White "shaheus"]
[Black "Titus369"]
[Result "1-0"]
[WhiteElo "2417"]
[BlackElo "2556"]
[TimeControl "180+1"]
[EndTime "10:58:49 PST"]
[Termination "shaheus won by checkmate"]

1. e4 {[%clk 0:03:00.9]} 1... c5 {[%clk 0:02:59.4]} 2. Nf3 {[%clk 0:03:00.9]}
2... d6 {[%clk 0:02:58.1]} 3. c3 {[%clk 0:03:01.1]} 3... Nf6 {[%clk 0:02:58.2]}
4. Qb3 {[%clk 0:03:00.9]} 4... Nc6 {[%clk 0:02:55.2]} 5. d4 {[%clk 0:03:00.5]}
5... cxd4 {[%clk 0:02:53.5]} 6. cxd4 {[%clk 0:03:00.4]} 6... Nxe4 {[%clk
0:02:45]} 7. d5 {[%clk 0:03:00.4]} 7... Nc5 {[%clk 0:02:44.3]} 8. Qa3 {[%clk
0:03:00.4]} 8... Nb8 {[%clk 0:02:25.9]} 9. Be3 {[%clk 0:02:59.6]} 9... e5 {[%clk
0:02:11.6]} 10. dxe6 {[%clk 0:02:41.9]} 10... Bxe6 {[%clk 0:02:09.5]} 11. Nc3
{[%clk 0:02:37.8]} 11... Be7 {[%clk 0:02:06.9]} 12. Bb5+ {[%clk 0:02:25.3]}
12... Nbd7 {[%clk 0:02:03.5]} 13. O-O {[%clk 0:02:11.6]} 13... O-O {[%clk
0:02:02.1]} 14. Nd4 {[%clk 0:01:50.6]} 14... d5 {[%clk 0:01:27.4]} 15. b4 {[%clk
0:01:35.5]} 15... a6 {[%clk 0:00:44.2]} 16. Be2 {[%clk 0:01:34.7]} 16... Ne4
{[%clk 0:00:26.3]} 17. Nxe4 {[%clk 0:01:34.6]} 17... dxe4 {[%clk 0:00:27.2]} 18.
Nxe6 {[%clk 0:01:34.7]} 18... fxe6 {[%clk 0:00:28.1]} 19. Qb3 {[%clk 0:01:30.6]}
19... Rf6 {[%clk 0:00:22.6]} 20. Rfd1 {[%clk 0:01:27.1]} 20... Qe8 {[%clk
0:00:18.2]} 21. Rac1 {[%clk 0:01:19.1]} 21... Rc8 {[%clk 0:00:12.1]} 22. Rxc8
{[%clk 0:01:03.3]} 22... Qxc8 {[%clk 0:00:13]} 23. Bg5 {[%clk 0:01:03.2]} 23...
Rf7 {[%clk 0:00:11.3]} 24. Be3 {[%clk 0:00:48.8]} 24... Nf8 {[%clk 0:00:10.8]}
25. Rc1 {[%clk 0:00:46.5]} 25... Qd7 {[%clk 0:00:10.2]} 26. a4 {[%clk 0:00:44]}
26... Bf6 {[%clk 0:00:10.1]} 27. b5 {[%clk 0:00:43.6]} 27... axb5 {[%clk
0:00:09.9]} 28. Bxb5 {[%clk 0:00:35.1]} 28... Qd6 {[%clk 0:00:10.2]} 29. Rc8
{[%clk 0:00:31]} 29... Rc7 {[%clk 0:00:09.4]} 30. Rxc7 {[%clk 0:00:27.5]} 30...
Qxc7 {[%clk 0:00:10.3]} 31. g3 {[%clk 0:00:27.4]} 31... Qd6 {[%clk 0:00:08.9]}
32. Qc4 {[%clk 0:00:23]} 32... Qd5 {[%clk 0:00:07.8]} 33. Qc8 {[%clk 0:00:21.2]}
33... h5 {[%clk 0:00:07.1]} 34. Bc5 {[%clk 0:00:18.2]} 34... Qd1+ {[%clk
0:00:06.8]} 35. Bf1 {[%clk 0:00:18]} 35... Kh7 {[%clk 0:00:03.8]} 36. Qxf8
{[%clk 0:00:16.7]} 36... Qc1 {[%clk 0:00:02.2]} 37. Qd6 {[%clk 0:00:14.3]} 37...
Bg5 {[%clk 0:00:01.1]} 38. h4 {[%clk 0:00:12.5]} 38... e3 {[%clk 0:00:01.6]} 39.
Bxe3 {[%clk 0:00:10.8]} 39... Bxe3 {[%clk 0:00:02.5]} 40. fxe3 {[%clk
0:00:10.8]} 40... Qxe3+ {[%clk 0:00:03.4]} 41. Kh2 {[%clk 0:00:10.9]} 41... Qf2+
{[%clk 0:00:03.7]} 42. Bg2 {[%clk 0:00:11.3]} 42... Qf6 {[%clk 0:00:03.2]} 43.
Qf4 {[%clk 0:00:10.9]} 43... Kg6 {[%clk 0:00:02.3]} 44. Be4+ {[%clk 0:00:10.5]}
44... Kf7 {[%clk 0:00:02.4]} 45. Qxf6+ {[%clk 0:00:10.5]} 45... gxf6 {[%clk
0:00:03.3]} 46. Bxb7 {[%clk 0:00:10.5]} 46... Ke7 {[%clk 0:00:03.3]} 47. a5
{[%clk 0:00:10.4]} 47... Kd6 {[%clk 0:00:03.8]} 48. a6 {[%clk 0:00:10.9]} 48...
Kc7 {[%clk 0:00:04.6]} 49. Bf3 {[%clk 0:00:10.4]} 49... f5 {[%clk 0:00:05.1]}
50. Bxh5 {[%clk 0:00:10.3]} 50... e5 {[%clk 0:00:05.2]} 51. Bg6 {[%clk
0:00:10.2]} 51... e4 {[%clk 0:00:05.1]} 52. Bxf5 {[%clk 0:00:10]} 52... e3
{[%clk 0:00:05.7]} 53. Bd3 {[%clk 0:00:10.4]} 53... Kb6 {[%clk 0:00:06]} 54. Be2
{[%clk 0:00:11]} 54... Ka7 {[%clk 0:00:06.9]} 55. h5 {[%clk 0:00:11.5]} 55...
Kb6 {[%clk 0:00:07.4]} 56. h6 {[%clk 0:00:12.1]} 56... Ka7 {[%clk 0:00:08.3]}
57. h7 {[%clk 0:00:12.7]} 57... Kb6 {[%clk 0:00:09.2]} 58. h8=Q {[%clk 0:00:13]}
58... Ka7 {[%clk 0:00:10.1]} 59. Qd4+ {[%clk 0:00:13.1]} 59... Kb8 {[%clk
0:00:10.4]} 60. Qxe3 {[%clk 0:00:13.6]} 60... Ka8 {[%clk 0:00:11]} 61. Qe7
{[%clk 0:00:12.5]} 61... Kb8 {[%clk 0:00:11.9]} 62. Qb7# {[%clk 0:00:12.4]} 1-0

[Event "*** Titled Tuesday Blitz"]
[Site "Chess.com"]
[Date "2021.02.16"]
[Round "5"]
[White "BvsN"]
[Black "AntonovaNadezhda"]
[Result "1-0"]
[WhiteElo "2368"]
[BlackElo "2152"]
[TimeControl "180+1"]
[EndTime "10:58:50 PST"]
[Termination "BvsN won on time"]

1. c4 {[%clk 0:03:00.9]} 1... Nf6 {[%clk 0:02:15.6]} 2. Nc3 {[%clk 0:03:00.2]}
2... g6 {[%clk 0:02:15.6]} 3. e4 {[%clk 0:03:00]} 3... d6 {[%clk 0:02:14.8]} 4.
d4 {[%clk 0:03:00.1]} 4... Bg7 {[%clk 0:02:14.3]} 5. Nge2 {[%clk 0:03:00.5]}
5... O-O {[%clk 0:02:13.7]} 6. f3 {[%clk 0:03:00.7]} 6... c5 {[%clk 0:02:01.8]}
7. d5 {[%clk 0:03:00.4]} 7... e6 {[%clk 0:01:59.4]} 8. Ng3 {[%clk 0:03:00.5]}
8... exd5 {[%clk 0:01:57.6]} 9. cxd5 {[%clk 0:03:01.4]} 9... a6 {[%clk
0:01:55.1]} 10. a4 {[%clk 0:03:01.7]} 10... Nbd7 {[%clk 0:01:27.8]} 11. Be2
{[%clk 0:03:01.2]} 11... h5 {[%clk 0:01:23.2]} 12. Bg5 {[%clk 0:03:00.7]} 12...
Qc7 {[%clk 0:01:21.6]} 13. Qd2 {[%clk 0:02:59.3]} 13... Nh7 {[%clk 0:01:19.2]}
14. Bh6 {[%clk 0:02:57.9]} 14... Re8 {[%clk 0:01:13.6]} 15. Bxg7 {[%clk
0:02:53.7]} 15... Kxg7 {[%clk 0:01:13.6]} 16. O-O {[%clk 0:02:49.4]} 16... Ne5
{[%clk 0:01:12.2]} 17. h3 {[%clk 0:02:34.9]} 17... h4 {[%clk 0:01:09.8]} 18. Nh1
{[%clk 0:02:34.6]} 18... Qe7 {[%clk 0:01:05.6]} 19. f4 {[%clk 0:02:27.2]} 19...
Nd7 {[%clk 0:01:04.7]} 20. Nf2 {[%clk 0:02:25.1]} 20... Ndf6 {[%clk 0:00:59]}
21. Bc4 {[%clk 0:01:53.9]} 21... Nh5 {[%clk 0:00:55.7]} 22. Nh1 {[%clk
0:01:29.5]} 22... g5 {[%clk 0:00:47]} 23. e5 {[%clk 0:01:19.5]} 23... Nxf4
{[%clk 0:00:43.2]} 24. exd6 {[%clk 0:01:12.8]} 24... Qxd6 {[%clk 0:00:42.1]} 25.
Nf2 {[%clk 0:01:06]} 25... Bf5 {[%clk 0:00:36.8]} 26. Rae1 {[%clk 0:01:04.7]}
26... Nf6 {[%clk 0:00:27.5]} 27. Nd3 {[%clk 0:00:57.9]} 27... Bxd3 {[%clk
0:00:13.9]} 28. Bxd3 {[%clk 0:00:57.7]} 28... N6xd5 {[%clk 0:00:13]} 29. Nxd5
{[%clk 0:00:54.6]} 29... Qxd5 {[%clk 0:00:12.7]} 30. Rxe8 {[%clk 0:00:28.4]}
30... Rxe8 {[%clk 0:00:11.5]} 31. Rf3 {[%clk 0:00:25.3]} 31... Rd8 {[%clk
0:00:11.3]} 32. Qc3+ {[%clk 0:00:24.4]} 32... Qd4+ {[%clk 0:00:09.8]} 33. Qxd4+
{[%clk 0:00:24]} 33... Rxd4 {[%clk 0:00:10.2]} 34. Bf1 {[%clk 0:00:19]} 34...
Rxa4 {[%clk 0:00:09.6]} 35. Rc3 {[%clk 0:00:16.4]} 35... b6 {[%clk 0:00:08.6]}
36. Kf2 {[%clk 0:00:16.2]} 36... Rb4 {[%clk 0:00:08.3]} 37. b3 {[%clk
0:00:15.9]} 37... a5 {[%clk 0:00:07.9]} 38. g3 {[%clk 0:00:15.8]} 38... hxg3+
{[%clk 0:00:07.1]} 39. Kxg3 {[%clk 0:00:16.2]} 39... a4 {[%clk 0:00:07.1]} 40.
bxa4 {[%clk 0:00:15.7]} 40... Rxa4 {[%clk 0:00:07.4]} 41. Bc4 {[%clk 0:00:14.2]}
41... Rb4 {[%clk 0:00:07.2]} 42. Kg4 {[%clk 0:00:12.9]} 42... f6 {[%clk
0:00:07.3]} 43. Kf5 {[%clk 0:00:12.9]} 43... Rb1 {[%clk 0:00:06.3]} 44. Ba6
{[%clk 0:00:08.8]} 44... Rg1 {[%clk 0:00:04.2]} 45. Re3 {[%clk 0:00:08.3]} 45...
Rb1 {[%clk 0:00:03.9]} 46. Re7+ {[%clk 0:00:07.7]} 46... Kf8 {[%clk 0:00:04.4]}
47. Rc7 {[%clk 0:00:06.6]} 47... Nd5 {[%clk 0:00:04.1]} 48. Rd7 {[%clk
0:00:05.5]} 48... Ne7+ {[%clk 0:00:02.8]} 49. Kxf6 {[%clk 0:00:05.5]} 49... Rf1+
{[%clk 0:00:03.4]} 50. Kxg5 {[%clk 0:00:05.3]} 50... Rg1+ {[%clk 0:00:02]} 51.
Kf6 {[%clk 0:00:05.8]} 51... Rf1+ {[%clk 0:00:02.3]} 52. Kg5 {[%clk 0:00:06]}
52... Rg1+ {[%clk 0:00:02.6]} 53. Kf6 {[%clk 0:00:06.5]} 53... Rf1+ {[%clk
0:00:01.9]} 54. Bxf1 {[%clk 0:00:06.7]} 1-0

[Event "*** Titled Tuesday Blitz"]
[Site "Chess.com"]
[Date "2021.02.16"]
[Round "5"]
[White "Euge_chess"]
[Black "Kale36"]
[Result "0-1"]
[WhiteElo "2100"]
[BlackElo "2223"]
[TimeControl "180+1"]
[EndTime "10:58:50 PST"]
[Termination "Kale36 won on time"]

1. e4 {[%clk 0:03:00.9]} 1... c6 {[%clk 0:02:52.3]} 2. d4 {[%clk 0:03:00.3]}
2... d5 {[%clk 0:02:52.2]} 3. exd5 {[%clk 0:03:01.2]} 3... cxd5 {[%clk
0:02:52.1]} 4. Nf3 {[%clk 0:03:01.4]} 4... Nf6 {[%clk 0:02:52.1]} 5. c4 {[%clk
0:03:01.3]} 5... Nc6 {[%clk 0:02:47]} 6. Nc3 {[%clk 0:03:00.8]} 6... Be6 {[%clk
0:02:46.8]} 7. c5 {[%clk 0:02:58.6]} 7... g6 {[%clk 0:02:45.8]} 8. Bb5 {[%clk
0:02:57]} 8... Bg7 {[%clk 0:02:44.5]} 9. O-O {[%clk 0:02:51.9]} 9... O-O {[%clk
0:02:43.8]} 10. Bg5 {[%clk 0:02:43.4]} 10... Bg4 {[%clk 0:02:41.8]} 11. Bxc6
{[%clk 0:02:41.7]} 11... bxc6 {[%clk 0:02:40]} 12. h3 {[%clk 0:02:41.4]} 12...
Bf5 {[%clk 0:02:33.8]} 13. Ne5 {[%clk 0:02:39.7]} 13... Rc8 {[%clk 0:02:27.5]}
14. Qa4 {[%clk 0:02:35.2]} 14... Qc7 {[%clk 0:02:21.8]} 15. Bf4 {[%clk
0:02:24.3]} 15... Qb7 {[%clk 0:02:20]} 16. b4 {[%clk 0:02:08.3]} 16... Nd7
{[%clk 0:02:13.8]} 17. Rfe1 {[%clk 0:02:04.2]} 17... Nxe5 {[%clk 0:01:56.3]} 18.
Bxe5 {[%clk 0:02:03.6]} 18... Bxe5 {[%clk 0:01:53.8]} 19. Rxe5 {[%clk
0:02:02.7]} 19... Bd3 {[%clk 0:01:50.4]} 20. Rae1 {[%clk 0:01:59.5]} 20... e6
{[%clk 0:01:49.1]} 21. R5e3 {[%clk 0:01:55]} 21... Bc4 {[%clk 0:01:48.9]} 22.
Rb1 {[%clk 0:01:48.5]} 22... Rb8 {[%clk 0:01:43.6]} 23. a3 {[%clk 0:01:45.4]}
23... Qe7 {[%clk 0:01:32.9]} 24. Qd1 {[%clk 0:01:18.5]} 24... a5 {[%clk
0:01:25.6]} 25. bxa5 {[%clk 0:00:59.2]} 25... Qa7 {[%clk 0:01:15.1]} 26. Rb6
{[%clk 0:00:51.6]} 26... Qxa5 {[%clk 0:01:12.6]} 27. Rxc6 {[%clk 0:00:48]} 27...
Rb3 {[%clk 0:01:10.2]} 28. Ne2 {[%clk 0:00:13.1]} 28... Rxe3 {[%clk 0:01:03.7]}
29. fxe3 {[%clk 0:00:12.5]} 29... Qxa3 {[%clk 0:01:03.8]} 30. Qd2 {[%clk
0:00:12.5]} 30... Rb8 {[%clk 0:00:54.6]} 31. Rb6 {[%clk 0:00:12.4]} 31... Rxb6
{[%clk 0:00:47.3]} 32. cxb6 {[%clk 0:00:12.2]} 32... Qb3 {[%clk 0:00:45.8]} 33.
Kf2 {[%clk 0:00:11.8]} 33... Qxb6 {[%clk 0:00:45.5]} 34. Qc3 {[%clk 0:00:11.7]}
34... Qb1 {[%clk 0:00:41.9]} 35. Nf4 {[%clk 0:00:08.6]} 35... Qf1+ {[%clk
0:00:37.6]} 36. Kg3 {[%clk 0:00:08.6]} 36... Kg7 {[%clk 0:00:32.2]} 37. Qb4
{[%clk 0:00:07.9]} 37... Qc1 {[%clk 0:00:25.8]} 38. Kf3 {[%clk 0:00:05.2]} 38...
Bf1 {[%clk 0:00:18.6]} 39. Qd6 {[%clk 0:00:03.1]} 39... Qd1+ {[%clk 0:00:05.2]}
40. Kg3 {[%clk 0:00:01.9]} 40... Qe1+ {[%clk 0:00:04.6]} 41. Kh2 {[%clk
0:00:01.8]} 41... Bc4 {[%clk 0:00:04.9]} 42. Qe5+ {[%clk 0:00:01.7]} 42... Kf8
{[%clk 0:00:05.2]} 43. Qd6+ {[%clk 0:00:01.7]} 43... Kg8 {[%clk 0:00:05.3]} 44.
Qe5 {[%clk 0:00:02.4]} 44... Qf1 {[%clk 0:00:03.5]} 45. Qb8+ {[%clk 0:00:02.3]}
45... Kg7 {[%clk 0:00:03.6]} 46. Qe5+ {[%clk 0:00:02.6]} 46... Kf8 {[%clk
0:00:03.5]} 47. Qd6+ {[%clk 0:00:02.7]} 47... Kg7 {[%clk 0:00:03.8]} 48. Qe5+
{[%clk 0:00:02.8]} 48... Kh6 {[%clk 0:00:04.5]} 49. h4 {[%clk 0:00:01.1]} 49...
Qf2 {[%clk 0:00:03.9]} 0-1